bitfinex/quotes_ETHUSD_20240717
["timestamp","ask_amount","ask_price","bid_price","bid_amount"]
[1721217386917,2.89477,3454.5,3453.8,2.89535]
[1721217387113,2.89477,3454.5,3453.7,2.89543]
[1721217387529,2.89477,3454.5,3453.8,2.89535]
[1721217389528,2.89432,3455.1,3453.8,2.89535]
[1721217389529,5.4784,3455.2,3453.9,2.89525]
[1721217389734,2.89461,3454.7,3453.9,2.89525]
[1721217389943,2.89448,3454.9,3454.1,2.8951]
[1721217390360,2.89455,3454.8,3454.1,2.8951]
[1721217390747,5.4784,3455.2,3453.7,2.89542]
[1721217390937,2.89478,3454.5,3453.8,2.89536]
[1721217392126,2.89478,3454.5,3453.9,2.89527]
[1721217392325,2.89469,3454.6,3453.9,2.89527]
[1721217392523,0.79444,3455.1,3454.2,2.895]
[1721217392726,3.68874,3455.1,3454.2,2.4114]
[1721217393029,5.8944,3455.0,3454.3,2.89494]
[1721217393961,2.89423,3455.2,3454.4,2.89485]
[1721217394463,9.6062,3455.5,3454.4,1.7]
[1721217394649,2.89392,3455.6,3454.8,2.89445]
[1721217394961,2.466,3455.7,3454.3,3.715047]
[1721217395260,2.89434,3455.1,3454.4,2.89485]
[1721217395464,2.89402,3455.4,3454.5,2.89474]
[1721217395675,2.89402,3455.4,3454.7,2.89453]
[1721217395832,2.89402,3455.4,3454.8,2.89451]
[1721217397770,5.3598,3455.7,3454.8,2.89451]
[1721217397771,5.35982,3455.7,3454.9,2.89441]
[1721217397926,2.89399,3455.5,3454.8,2.2872]
[1721217398133,5.788,3455.5,3454.8,2.2872]
[1721217398331,2.89399,3455.5,3454.8,5.1817]
[1721217398966,2.89399,3455.5,3454.5,2.89473]
[1721217398967,2.89403,3455.4,3454.5,5.18693]
[1721217399135,4.1262922,3455.4,3454.7,2.8946]
[1721217399728,2.89428,3455.1,3454.5,2.2922]
[1721217400569,2.8942,3455.2,3454.5,5.1869]
[1721217400757,2.4027,3455.3,3454.6,2.89468]
[1721217401063,2.89405,3455.4,3454.6,2.89468]
[1721217401631,2.89405,3455.4,3454.7,2.89452]
[1721217401931,5.89388,3455.6,3454.9,2.89443]
[1721217402146,3.0,3455.6,3455.0,2.89434]
[1721217402357,5.89386,3455.6,3455.0,2.89434]
[1721217402532,7.0694992,3455.6,3454.9,2.89443]
[1721217403438,7.0694992,3455.6,3454.9,5.78879]
[1721217403638,9.9634292,3455.6,3454.9,2.89436]
[1721217405634,2.89394,3455.5,3454.9,2.89436]
[1721217405841,7.0694992,3455.6,3454.6,2.89464]
[1721217405842,2.89415,3455.3,3454.6,2.89464]
[1721217406078,2.89415,3455.3,3454.6,5.78927]
[1721217406558,2.89415,3455.3,3454.7,2.8946]
[1721217407478,1.47575392,3455.4,3454.7,2.8946]
[1721217408186,4.36984392,3455.4,3454.7,2.8946]
[1721217408368,2.89419,3455.2,3454.5,2.2922]
[1721217408690,2.89436,3455.0,3454.3,2.89493]
[1721217408975,0.827185,3454.9,3454.3,2.89493]
[1721217409157,0.827185,3454.9,3454.4,2.89484]
[1721217409665,3.20296339,3455.3,3454.5,2.89474]
[1721217409871,5.89389,3455.6,3454.8,2.4799]
[1721217410187,2.89394,3455.5,3454.8,5.37437]
[1721217410370,3.0,3455.4,3454.8,5.37437]
[1721217411483,3.0,3455.4,3454.7,2.89453]
[1721217411681,3.0,3455.4,3454.8,2.89451]
[1721217412449,3.0,3455.6,3454.8,2.89451]
[1721217412681,2.89385,3455.6,3454.9,2.89442]
[1721217412892,2.89385,3455.6,3454.5,2.3191]
[1721217412893,3.4934428,3456.0,3454.8,1.7]
[1721217413043,2.89357,3456.0,3455.3,2.89409]
[1721217413244,2.89361,3455.9,3455.3,2.89409]
[1721217413850,2.89357,3456.0,3455.3,2.89409]
[1721217414049,3.4930828,3456.4,3455.5,2.89386]
[1721217414354,2.89341,3456.2,3455.5,2.89386]
[1721217414568,5.78682,3456.2,3455.5,2.89386]
[1721217414883,2.89341,3456.2,3455.5,2.89386]
[1721217415683,2.89341,3456.2,3455.1,5.25264]
[1721217415870,2.89341,3456.2,3455.2,2.89417]
[1721217415871,2.8936,3455.9,3455.2,2.89417]
[1721217416060,2.89376,3455.8,3455.1,2.89427]
[1721217416447,0.839341,3456.1,3455.1,2.89427]
[1721217416646,2.89377,3455.7,3454.9,2.89443]
[1721217417460,2.89377,3455.7,3454.9,5.7888]
[1721217417661,3.961419,3455.7,3454.9,5.7888]
[1721217418165,3.961419,3455.7,3455.0,2.89435]
[1721217420276,3.961419,3455.7,3454.9,2.89437]
[1721217420454,2.89395,3455.5,3454.9,2.89437]
[1721217421094,2.89419,3455.2,3454.5,5.30294]
[1721217421292,2.89419,3455.2,3454.3,2.8949]
[1721217421293,2.89434,3455.1,3454.3,2.8949]
[1721217421452,5.27884,3455.1,3454.3,2.8949]
[1721217421652,2.8944,3455.0,3454.3,2.8949]
[1721217421890,2.8944,3455.0,3454.3,2.89487]
[1721217422304,2.8944,3455.0,3454.2,2.89495]
[1721217422483,2.8944,3455.0,3454.3,2.89488]
[1721217423172,3.77984628,3455.0,3454.3,2.89488]
[1721217423373,2.8947,3454.6,3453.8,2.89529]
[1721217423597,5.36056,3454.8,3453.6,4.0204]
[1721217423796,2.89461,3454.7,3454.1,2.8951]
[1721217424377,2.89461,3454.7,3453.8,2.89532]
[1721217424780,2.89461,3454.7,3454.0,2.89514]
[1721217425005,2.89469,3454.6,3454.0,2.89514]
[1721217425991,3.62207691,3454.7,3454.0,2.89514]
[1721217426200,2.89464,3454.7,3454.0,2.89514]
[1721217426396,2.8947,3454.6,3453.9,2.89526]
[1721217427097,0.5998728,3454.9,3453.6,2.3204]
[1721217427098,5.36101,3454.3,3453.6,2.3204]
[1721217427270,2.89509,3454.2,3453.5,0.45379827]
[1721217427473,2.89511,3454.1,3453.4,2.89562]
[1721217427682,2.89508,3454.2,3453.5,2.8956]
[1721217427887,2.89508,3454.2,3453.5,2.366145]
[1721217428790,2.89516,3454.1,3453.4,2.89569]
[1721217428975,2.89521,3454.0,3453.3,2.89576]
[1721217429382,2.8953,3453.9,3453.2,2.4363]
[1721217429702,2.89551,3453.7,3453.0,2.89602]
[1721217430076,2.89554,3453.6,3453.0,2.89602]
[1721217430502,2.89584,3453.3,3452.5,2.8964]
[1721217430794,2.89584,3453.3,3452.6,2.89635]
[1721217430973,5.36164,3453.5,3452.4,2.2595]
[1721217430974,0.825748,3453.2,3452.4,2.2595]
[1721217431173,2.89611,3452.9,3452.4,2.2595]
[1721217432480,2.89611,3452.9,3452.2,2.8967]
[1721217432666,2.89611,3452.9,3451.9,5.21938]
[1721217432667,2.89611,3452.9,3452.0,2.89679]
[1721217432868,2.89611,3452.9,3451.9,5.21938]
[1721217433297,2.89633,3452.7,3451.9,5.21938]
[1721217433509,2.89633,3452.7,3452.0,2.89686]
[1721217433786,3.475574,3452.7,3451.9,5.21945]
[1721217434980,2.89637,3452.6,3451.9,2.3225]
[1721217435302,2.89646,3452.5,3451.9,2.3225]
[1721217435968,2.89645,3452.5,3451.9,5.21944]
[1721217440795,2.89645,3452.5,3451.8,2.89703]
[1721217441003,3.7802474,3452.5,3451.8,2.89703]
[1721217441198,2.89645,3452.5,3451.8,2.89703]
[1721217441818,2.89658,3452.4,3451.6,2.89719]
[1721217442020,2.89658,3452.4,3451.7,2.89709]
[1721217442981,2.89645,3452.5,3451.8,2.89702]
[1721217443306,2.89654,3452.4,3451.8,2.89697]
[1721217443514,2.89643,3452.6,3451.9,2.89694]
[1721217443736,2.89645,3452.5,3451.9,2.89694]
[1721217444431,2.89643,3452.6,3451.9,2.89694]
[1721217444612,3.7802194,3452.6,3451.9,2.89694]
[1721217444946,2.89647,3452.5,3451.9,2.89694]
[1721217445144,2.89589,3453.2,3452.3,2.89654]
[1721217445335,2.4278,3453.6,3452.3,2.89654]
[1721217445336,2.89611,3453.0,3452.3,2.89654]
[1721217445647,3.185741,3452.9,3452.1,2.8967]
[1721217445811,2.8962,3452.8,3452.1,2.8967]
[1721217446424,2.89629,3452.7,3452.0,2.89686]
[1721217446611,2.89638,3452.6,3451.9,2.89693]
[1721217446813,2.89647,3452.5,3451.9,2.89693]
[1721217447051,3.475755,3452.5,3451.9,2.89693]
[1721217447550,2.89654,3452.4,3451.9,2.89693]
[1721217447850,0.579285,3452.5,3451.3,2.4935]
[1721217447851,3.045285,3452.5,3451.3,2.4935]
[1721217448145,2.774111,3452.9,3451.3,2.4935]
[1721217448146,2.466,3451.7,3451.3,2.4935]
[1721217448361,5.36283,3452.1,3451.3,5.39091]
[1721217448653,5.89655,3452.4,3451.6,2.89717]
[1721217448841,0.836255,3452.3,3451.6,2.89717]
[1721217449042,2.8967,3452.2,3451.6,2.89717]
[1721217449413,2.89655,3452.4,3451.6,2.89717]
[1721217449721,2.8964,3452.6,3451.6,2.89717]
[1721217449722,2.8964,3452.6,3451.8,2.89696]
[1721217450020,5.89645,3452.5,3451.6,2.89713]
[1721217450245,0.879285,3452.4,3451.7,2.8971]
[1721217450613,3.775825,3452.4,3451.7,2.8971]
[1721217450948,3.0,3452.5,3451.8,2.897]
[1721217451246,5.89645,3452.5,3451.8,2.897]
[1721217451557,3.0,3452.5,3451.9,2.89695]
[1721217451852,5.89638,3452.6,3451.9,2.89695]
[1721217452061,3.93426,3452.5,3451.9,2.89695]
[1721217454238,3.93426,3452.5,3452.0,2.3951]
[1721217454610,2.755611,3452.9,3452.2,2.89663]
[1721217455041,2.755611,3452.9,3452.0,2.3951]
[1721217455042,2.466,3452.9,3452.0,2.3951]
[1721217455237,2.466,3452.9,3452.3,2.89659]
[1721217455411,2.89591,3453.2,3452.3,2.89659]
[1721217455412,2.89591,3453.2,3452.5,2.8964]
[1721217455626,2.89591,3453.2,3452.5,2.89637]
[1721217455841,2.89591,3453.2,3452.5,2.89642]
[1721217456036,2.89591,3453.2,3452.0,4.0951]
[1721217456037,3.721686,3453.2,3452.3,2.89657]
[1721217456247,2.89612,3452.9,3452.3,2.89657]
[1721217456853,2.89612,3452.9,3452.1,2.89675]
[1721217456854,2.8962,3452.8,3452.1,2.89675]
[1721217458520,2.8962,3452.8,3452.2,2.89665]
[1721217459046,2.466,3452.9,3452.3,2.89661]
[1721217459229,2.466,3452.9,3452.3,3.715456]
[1721217459434,3.0,3453.1,3452.5,2.89644]
[1721217459635,5.89586,3453.2,3452.5,2.89644]
[1721217460846,3.0,3453.2,3452.5,2.89644]
[1721217462045,2.89587,3453.2,3452.5,2.89644]
[1721217462249,3.0,3453.1,3452.5,2.89644]
[1721217463071,3.0,3453.1,3452.6,2.426]
[1721217464239,4.125761,3453.1,3452.6,2.426]
[1721217465042,4.125761,3453.1,3452.6,5.32236]
[1721217465382,2.466,3453.3,3452.6,5.32236]
[1721217465383,3.0,3453.2,3452.6,5.32236]
[1721217466186,5.3618,3453.3,3452.7,2.89625]
[1721217466187,2.466,3453.3,3452.7,2.89625]
[1721217466492,2.89563,3453.5,3452.8,2.89613]
[1721217466662,2.89563,3453.5,3452.9,2.8961]
[1721217467268,2.466,3453.7,3452.6,2.426]
[1721217467568,2.89525,3454.0,3453.3,2.4605]
[1721217467896,2.89528,3453.9,3453.3,2.4605]
[1721217468093,2.89541,3453.8,3453.3,2.4605]
[1721217469006,2.8952,3454.0,3453.3,5.35627]
[1721217469153,3.0,3453.9,3453.4,2.89566]
[1721217469490,6.427122,3454.1,3453.4,2.89566]
[1721217469675,3.0,3454.0,3453.4,2.89566]
[1721217471607,5.8952,3454.0,3453.4,2.89566]
[1721217471771,3.0,3454.0,3453.4,2.89566]
[1721217475759,5.89522,3454.0,3453.3,2.4605]
[1721217475968,2.466,3453.7,3452.9,2.89611]
[1721217476269,2.89558,3453.6,3452.8,5.18635]
[1721217476491,2.8957,3453.4,3452.8,5.18635]
[1721217476796,2.89558,3453.6,3452.9,2.8961]
[1721217476959,4.15647493,3453.6,3452.9,2.8961]
[1721217477160,2.89562,3453.5,3452.9,2.8961]
[1721217477583,4.15647493,3453.6,3452.8,5.18634]
[1721217477584,2.89571,3453.4,3452.8,5.18634]
[1721217477862,4.15647493,3453.6,3452.8,5.18634]
[1721217478057,4.15647493,3453.6,3452.9,2.8961]
[1721217479766,3.4952528,3453.8,3453.1,2.89588]
[1721217479767,0.5998728,3453.8,3453.1,2.89588]
[1721217479962,1.29221648,3453.9,3453.2,2.89581]
[1721217480161,2.89541,3453.8,3453.0,2.89597]
[1721217480412,2.8957,3453.4,3452.8,2.2902]
[1721217480564,2.89617,3452.9,3452.1,9.7538]
[1721217480766,5.36233,3452.7,3451.7,5.21088]
[1721217481015,2.89649,3452.5,3451.8,2.89703]
[1721217481224,2.89649,3452.5,3451.7,5.21088]
[1721217482724,2.89654,3452.4,3451.7,5.21088]
[1721217483514,2.89654,3452.4,3451.8,2.89703]
[1721217484983,3.7856898,3452.8,3452.0,2.89686]
[1721217485141,5.89631,3452.7,3452.0,2.89686]
[1721217486452,2.466,3452.3,3451.7,2.3138]
[1721217486725,2.466,3452.3,3451.3,10.33741]
[1721217486726,2.89671,3452.2,3451.5,2.89723]
[1721217487136,2.89671,3452.2,3451.6,2.8972]
[1721217487502,2.8966,3452.4,3451.6,2.8972]
[1721217487706,0.55,3452.6,3451.6,2.8972]
[1721217487707,5.466,3452.7,3451.8,2.89703]
[1721217487910,2.89637,3452.6,3451.9,2.89693]
[1721217488105,2.89645,3452.5,3451.9,2.89693]
[1721217488993,5.466,3452.7,3451.9,2.89693]
[1721217489195,2.89641,3452.6,3451.9,2.89693]
[1721217489395,0.8652027,3452.5,3451.9,2.89693]
[1721217489633,3.7616627,3452.5,3451.9,2.89693]
[1721217489837,3.0,3452.7,3452.2,2.4081]
[1721217490126,5.89612,3452.9,3452.2,2.4081]
[1721217490430,0.9861802,3452.8,3452.2,2.4081]
[1721217490733,2.89638,3452.6,3452.2,2.4081]
[1721217491106,2.89649,3452.5,3451.9,2.4744]
[1721217491491,2.89667,3452.3,3451.9,2.4744]
[1721217492431,2.89649,3452.5,3451.9,2.4744]
[1721217492594,2.89636,3452.6,3451.9,5.37134]
[1721217492794,2.89646,3452.5,3451.9,5.37134]
[1721217493228,2.89636,3452.6,3451.9,5.37134]
[1721217493427,2.89645,3452.5,3451.9,5.37134]
[1721217494443,4.482293,3452.8,3452.0,2.89685]
[1721217494743,2.89591,3453.2,3452.5,2.4628]
[1721217494940,3.0,3453.1,3452.5,5.35917]
[1721217495150,3.4955928,3453.4,3452.6,2.8963]
[1721217495354,2.89572,3453.4,3452.6,3.721847]
[1721217495639,2.89572,3453.4,3452.7,2.89626]
[1721217495822,0.5998728,3453.5,3452.8,2.89617]
[1721217496042,3.4953228,3453.7,3452.9,5.16836]
[1721217496397,2.89557,3453.6,3452.9,5.16836]
[1721217496899,0.5998728,3453.7,3453.0,2.89601]
[1721217497101,0.5998728,3453.8,3453.2,2.8958]
[1721217497299,0.5998728,3453.7,3453.2,2.8958]
[1721217497531,4.53515921,3453.8,3453.4,2.89568]
[1721217497739,4.53515921,3453.8,3453.2,2.8958]
[1721217498047,4.53515921,3453.8,3453.2,2.89578]
[1721217498358,4.53515921,3453.8,3453.3,2.89576]
[1721217498359,3.93528641,3453.8,3453.3,2.89576]
[1721217500052,3.93528641,3453.8,3453.2,2.89578]
[1721217500562,3.93528641,3453.8,3453.4,2.89564]
[1721217500763,3.0658728,3453.9,3453.4,2.89564]
[1721217500946,3.0658728,3454.3,3453.6,5.21232]
[1721217501354,2.466,3454.3,3453.7,2.89543]
[1721217501665,2.89472,3454.6,3453.8,2.8953]
[1721217501666,0.5998728,3454.6,3453.8,2.8953]
[1721217501842,1.285895,3454.5,3453.7,2.89538]
[1721217502039,1.285895,3454.5,3453.6,5.2123]
[1721217502040,0.6860222,3454.5,3453.8,2.89535]
[1721217502452,0.6860222,3454.5,3453.9,2.89527]
[1721217502941,0.6860222,3454.5,3453.8,2.89535]
[1721217503650,2.466,3454.3,3453.8,2.89535]
[1721217503854,0.60467922,3454.2,3453.8,2.89535]
[1721217504039,0.60467922,3454.2,3453.6,5.21231]
[1721217506376,0.60467922,3454.2,3453.7,2.89544]
[1721217507134,2.466,3454.3,3453.8,2.89536]
[1721217507839,3.0,3454.4,3453.8,2.89536]
[1721217508044,0.6860222,3454.5,3453.8,2.89536]
[1721217508354,3.0,3454.6,3453.9,2.89526]
[1721217508533,5.36065,3454.7,3453.9,2.89526]
[1721217508866,4.41574928,3454.6,3453.9,2.89526]
[1721217509245,4.41574928,3454.6,3453.8,2.8953]
[1721217509651,4.41574928,3454.6,3453.8,2.89529]
[1721217509845,4.41574928,3454.6,3453.8,5.79059]
[1721217510041,4.41574928,3454.6,3453.9,2.89524]
[1721217510342,0.97763993,3454.5,3453.9,2.89524]
[1721217512590,0.97763993,3454.5,3453.8,2.89536]
[1721217514373,0.97763993,3454.5,3453.8,5.79067]
[1721217514748,0.97763993,3454.5,3453.8,2.89531]
[1721217518170,3.0,3454.6,3453.9,2.89527]
[1721217518359,8.36065,3454.7,3453.9,2.89527]
[1721217522761,11.25532,3454.7,3453.7,5.79079]
[1721217522962,8.36065,3454.7,3453.7,2.89537]
[1721217523163,1.355762,3454.6,3453.8,2.89535]
[1721217523386,4.355762,3454.6,3453.8,2.89535]
[1721217524193,7.250462,3454.6,3453.7,2.89537]
[1721217524357,7.250462,3454.6,3453.7,5.79076]
[1721217524559,7.250462,3454.6,3453.8,2.8953]
[1721217524762,1.2611112,3454.5,3453.8,2.8953]
[1721217524964,4.2611112,3454.5,3453.8,2.8953]
[1721217525601,4.2611112,3454.5,3453.9,2.89525]
[1721217525809,1.2611112,3454.5,3453.9,2.89525]
[1721217527178,3.0,3454.6,3453.9,2.89525]
[1721217527383,3.0,3454.6,3454.0,2.89519]
[1721217527618,2.466,3454.7,3454.0,2.89519]
[1721217528200,2.466,3454.7,3454.1,2.89509]
[1721217528404,3.0,3454.9,3454.1,2.89509]
[1721217528587,1.139444,3454.8,3454.2,2.2768]
[1721217528759,0.589444,3454.8,3454.2,5.17182]
[1721217529292,3.589444,3454.8,3454.2,2.2768]
[1721217530685,0.589444,3454.8,3454.2,2.2768]
[1721217530895,3.589444,3454.8,3454.3,2.89487]
[1721217531223,3.0,3454.8,3454.2,2.2768]
[1721217531511,3.0,3455.0,3454.3,2.89494]
[1721217531731,3.0,3455.0,3454.3,2.89488]
[1721217532015,5.466,3455.1,3454.3,2.89488]
[1721217532193,1.12545,3455.0,3454.3,2.89488]
[1721217532394,4.12545,3455.0,3454.3,2.89488]
[1721217534884,4.12545,3455.0,3454.2,2.2768]
[1721217535301,4.12545,3455.0,3454.3,2.89492]
[1721217539319,4.7253228,3455.0,3454.3,2.89492]
[1721217539619,4.7253228,3455.0,3454.2,2.2768]
[1721217539620,1.0985432,3454.9,3454.2,2.2768]
[1721217540031,1.698416,3454.9,3454.2,2.2768]
[1721217540322,1.86202716,3454.8,3454.2,2.2768]
[1721217540524,5.36064,3454.7,3453.6,2.4785]
[1721217540690,5.36064,3454.7,3453.4,7.44]
[1721217540691,2.89515,3454.1,3453.4,7.44]
[1721217540890,2.89515,3454.1,3452.9,2.4785]
[1721217540891,2.466,3453.8,3452.9,2.4785]
[1721217541134,2.89553,3453.6,3452.9,2.4785]
[1721217541435,0.5998728,3453.7,3452.9,2.4785]
[1721217541623,0.5998728,3453.6,3452.9,5.37461]
[1721217541794,1.86242692,3453.6,3452.9,5.37461]
[1721217541996,0.5998728,3453.6,3452.9,5.37461]
[1721217542199,0.5998728,3453.5,3452.9,2.4785]
[1721217542387,1.99549156,3453.6,3452.9,2.4785]
[1721217542587,4.89103156,3453.6,3452.9,2.4785]
[1721217542795,0.5998728,3453.5,3452.9,2.4785]
[1721217543007,1.99549156,3453.6,3452.9,2.4785]
[1721217543413,1.12567608,3453.5,3452.9,2.4785]
[1721217543808,1.72554888,3453.5,3452.9,2.4785]
[1721217544020,0.5998728,3453.5,3452.9,2.4785]
[1721217544207,0.5998728,3453.6,3452.9,5.37454]
[1721217544409,3.5998728,3453.7,3452.9,5.37454]
[1721217545336,7.97347176,3453.7,3452.9,5.37454]
[1721217545641,0.5998728,3453.4,3452.6,2.4039]
[1721217545806,3.4957428,3453.2,3452.4,2.89652]
[1721217546245,2.89587,3453.2,3452.4,2.89652]
[1721217546417,0.5998728,3453.4,3452.6,2.89636]
[1721217546621,3.5998728,3453.4,3452.6,2.89636]
[1721217547218,3.0,3453.4,3452.6,2.89636]
[1721217547414,3.5998728,3453.4,3452.6,2.89636]
[1721217548218,3.0,3453.4,3452.6,2.89636]
[1721217548611,3.0,3453.4,3452.8,2.4301]
[1721217549504,3.5998728,3453.6,3452.8,0.668168]
[1721217549705,3.0,3453.6,3452.8,0.668168]
[1721217550151,3.0,3453.6,3452.8,3.564338]
[1721217550553,7.3190191,3453.6,3452.8,0.668168]
[1721217550739,0.5998728,3453.5,3452.8,0.668168]
[1721217551254,7.9188919,3453.6,3452.8,0.668168]
[1721217551453,3.4954828,3453.5,3452.8,0.668168]
[1721217551638,3.0,3453.4,3452.8,0.668168]
[1721217551838,1.06722206,3453.3,3452.8,0.668168]
[1721217552227,3.96305206,3453.3,3452.4,2.89646]
[1721217552638,3.96305206,3453.3,3452.4,5.30196]
[1721217552846,1.06722206,3453.3,3452.5,2.89644]
[1721217553051,5.8957,3453.4,3452.5,2.89644]
[1721217553246,5.8957,3453.4,3452.6,2.89636]
[1721217558374,5.8957,3453.4,3452.6,5.79265]
[1721217558546,3.0,3453.4,3452.8,2.89619]
[1721217558746,5.466,3453.5,3452.8,2.89619]
[1721217559073,5.466,3453.5,3452.0,15.08683]
[1721217559275,5.466,3453.5,3452.8,2.89619]
[1721217560280,3.0,3453.5,3452.8,2.89619]
[1721217561779,3.0,3453.5,3452.7,2.89626]
[1721217562154,3.0,3453.5,3452.8,2.2824]
[1721217566171,0.5998728,3454.0,3452.8,3.9824]
[1721217566373,3.7948792,3454.2,3452.8,3.9824]
[1721217566374,2.89511,3454.1,3453.2,2.89578]
[1721217567499,3.0,3454.0,3453.2,2.89578]
[1721217567800,3.0,3454.0,3453.3,2.89577]
[1721217568709,3.0,3454.0,3453.4,5.30358]
[1721217569014,3.0,3454.2,3453.4,5.30358]
[1721217569168,4.55090528,3454.2,3453.4,5.30358]
[1721217569368,4.55090528,3454.2,3453.4,2.4079]
[1721217569617,2.4254,3453.8,3452.9,2.2803]
[1721217569914,2.89546,3453.7,3452.6,12.61662]
[1721217570215,2.89546,3453.7,3452.6,5.17662]
[1721217570216,0.778686,3453.6,3452.6,5.17662]
[1721217570416,0.778686,3453.6,3452.8,2.89614]
[1721217571381,3.674286,3453.6,3452.6,5.79263]
[1721217571790,3.674286,3453.6,3452.7,2.89626]
[1721217571969,0.8995146,3453.5,3452.7,2.89626]
[1721217574094,0.8995146,3453.5,3452.8,2.89619]
[1721217574297,5.89551,3453.7,3452.5,2.89639]
[1721217574500,5.89551,3453.7,3452.6,2.89631]
[1721217574501,2.466,3453.4,3452.6,2.89631]
[1721217575035,2.89562,3453.5,3452.6,2.89631]
[1721217577238,5.89551,3453.7,3452.7,2.89626]
[1721217577443,7.1791692,3453.7,3452.7,2.89626]
[1721217578131,7.1791692,3453.7,3452.8,2.89616]
[1721217579405,2.89553,3453.6,3452.8,2.89616]
[1721217582123,3.4954028,3453.6,3452.8,2.89616]
[1721217583127,0.5998728,3453.5,3452.8,2.89616]
[1721217584385,0.5998728,3453.4,3452.8,2.89616]
[1721217585032,0.5998728,3453.5,3452.8,2.89616]
[1721217585227,1.86244192,3453.4,3452.9,5.28394]
[1721217585441,0.5998728,3453.5,3452.9,5.28394]
[1721217585677,0.5998728,3453.5,3452.9,8.17998]
[1721217585896,1.45935156,3453.5,3452.9,5.28394]
[1721217586046,0.5998728,3453.4,3452.9,5.28394]
[1721217586740,1.45935156,3453.5,3452.9,5.28394]
[1721217587142,1.86238661,3453.4,3452.9,5.28394]
[1721217587363,0.5998728,3453.4,3452.9,5.28394]
[1721217589795,0.5998728,3453.3,3452.7,5.79243]
[1721217590099,2.9131728,3453.4,3452.8,2.89619]
[1721217590395,1.028,3453.1,3452.8,2.89619]
[1721217590700,1.028,3453.1,3452.6,5.31604]
[1721217591194,0.5998728,3453.5,3452.9,2.89609]
[1721217591568,1.028,3453.4,3452.9,2.89609]
[1721217594775,1.028,3453.4,3453.0,2.89602]
[1721217595299,1.028,3453.4,3453.1,5.37484]
[1721217595507,1.6278728,3453.6,3453.1,3.305986]
[1721217595727,0.5998728,3453.9,3453.4,2.89562]
[1721217596007,1.028,3454.2,3453.4,2.89562]
[1721217596008,0.5998728,3454.0,3453.5,0.05790524]
[1721217596215,0.5998728,3454.2,3453.5,2.95344524]
[1721217596375,0.5998728,3454.2,3453.6,5.35575608]
[1721217596570,1.499682,3454.4,3453.8,2.89534]
[1721217596814,0.5998728,3454.4,3453.8,2.89534]
[1721217596973,0.5998728,3454.5,3453.8,2.89534]
[1721217597313,0.5998728,3454.6,3453.8,2.89534]
[1721217597523,3.7944192,3454.7,3453.8,2.89534]
[1721217597524,2.5909288,3454.5,3453.8,2.89534]
[1721217597701,0.5998728,3454.5,3453.8,2.89534]
[1721217598221,3.7944192,3454.7,3453.8,2.95324024]
[1721217598222,0.5998728,3454.6,3453.8,2.95324024]
[1721217598773,0.5998728,3454.6,3454.0,2.89518]
[1721217599218,0.5998728,3454.7,3454.0,2.89518]
[1721217599517,1.8620588,3454.6,3453.8,2.89529]
[1721217599724,1.499682,3454.7,3453.9,0.53555961]
[1721217599878,1.499682,3454.7,3454.0,2.95300709]
[1721217599879,0.5998728,3454.7,3454.0,2.95300709]
[1721217600201,0.5923028,3454.8,3454.0,2.89511]
[1721217600399,4.26214422,3454.7,3453.9,4.5952]
[1721217600600,2.89492,3454.4,3453.4,5.35985]
[1721217600789,2.89495,3454.3,3453.5,2.89556]
[1721217601626,2.89503,3454.2,3453.4,2.4642]
[1721217601807,2.89522,3454.0,3453.2,2.89583]
[1721217602145,0.289522,3453.9,3453.2,2.89583]
[1721217602276,0.289522,3453.9,3453.0,2.89599]
[1721217602277,3.3519092,3454.3,3453.4,2.89563]
[1721217602483,3.0,3454.2,3453.5,2.89558]
[1721217602682,3.0,3454.4,3453.5,2.89558]
[1721217602885,3.0,3454.4,3453.6,2.89551]
[1721217603521,5.89487,3454.4,3453.6,2.89551]
[1721217603725,1.26977192,3454.3,3453.4,5.25783]
[1721217603931,1.26977192,3454.3,3453.1,2.3506]
[1721217604135,2.89525,3454.0,3453.0,2.89597]
[1721217604287,1.28934798,3453.9,3453.0,5.79192]
[1721217604488,5.33195,3453.7,3452.8,2.89613]
[1721217604689,2.4365,3453.7,3452.9,2.89609]
[1721217604921,2.4365,3453.7,3452.9,2.89606]
[1721217605132,1.28934798,3453.9,3453.3,2.89577]
[1721217605342,0.70916572,3453.8,3453.1,2.89591]
[1721217605987,2.89545,3453.7,3452.7,5.79244]
[1721217606207,2.89545,3453.7,3452.5,0.30188529]
[1721217606208,2.3411,3453.6,3452.5,0.30188529]
[1721217606419,2.3411,3453.6,3452.1,3.35070185]
[1721217606420,2.89601,3453.1,3452.1,3.35070185]
[1721217606620,3.721816,3453.0,3452.1,0.45395185]
[1721217606947,2.89613,3452.9,3452.0,10.33684]
[1721217607087,2.89613,3452.9,3452.0,2.89684]
[1721217607286,2.466,3452.9,3451.4,1.51062931]
[1721217607531,2.89669,3452.3,3451.1,6.77073931]
[1721217607833,1.053222,3452.3,3451.5,2.89728]
[1721217608140,2.89653,3452.5,3451.6,2.89718]
[1721217608289,6.1888092,3452.8,3451.8,2.89698]
[1721217608290,2.273,3452.8,3451.8,2.89698]
[1721217608492,3.0,3452.7,3451.7,2.89711]
[1721217608695,3.0,3453.0,3452.0,2.89686]
[1721217609005,8.5346692,3453.2,3452.0,2.89686]
[1721217609006,2.89617,3452.9,3452.0,2.89686]
[1721217609185,3.0,3453.1,3452.2,2.89664]
[1721217609392,3.0,3453.1,3452.4,2.89653]
[1721217609724,3.0,3453.1,3452.0,2.89685]